bitfinex/quotes_BTCUSD_20241021
["timestamp","ask_amount","ask_price","bid_price","bid_amount"]
[1729525631472,0.002825,67083.0,67080.0,0.172073]
[1729525631690,0.000825,67083.0,67080.0,0.172073]
[1729525631948,0.001825,67083.0,67080.0,0.183073]
[1729525632201,0.001825,67083.0,67082.0,0.149071]
[1729525632406,0.001825,67083.0,67082.0,0.224871]
[1729525632615,0.001825,67083.0,67082.0,0.39683015]
[1729525633049,0.002825,67083.0,67082.0,0.39683015]
[1729525633467,0.000825,67083.0,67082.0,0.39683015]
[1729525633664,0.000825,67083.0,67082.0,0.40783015]
[1729525633873,0.001825,67083.0,67082.0,0.40783015]
[1729525634921,0.002825,67083.0,67082.0,0.41683015]
[1729525635134,0.002825,67083.0,67082.0,0.53631746]
[1729525635336,0.002825,67083.0,67082.0,0.41683015]
[1729525636262,0.002825,67083.0,67082.0,0.1188]
[1729525636467,0.151894,67083.0,67082.0,0.02]
[1729525636720,0.30085315,67083.0,67082.0,0.02]
[1729525636892,0.31617419,67083.0,67082.0,0.02]
[1729525637851,0.31517419,67083.0,67082.0,0.011]
[1729525638096,0.149092,67073.0,67070.0,0.22378874]
[1729525638795,0.01532104,67072.0,67070.0,0.22378874]
[1729525639003,0.01532104,67072.0,67067.0,0.00165]
[1729525639004,0.16441404,67072.0,67067.0,0.00165]
[1729525639282,0.01532104,67072.0,67067.0,0.00165]
[1729525639929,0.149094,67072.0,67070.0,0.009]
[1729525640114,0.001,67073.0,67070.0,0.009]
[1729525640115,0.01532104,67071.0,67070.0,0.009]
[1729525640560,0.001,67072.0,67070.0,0.009]
[1729525640690,0.01532104,67071.0,67068.0,0.20165]
[1729525641097,0.150091,67073.0,67070.0,0.008]
[1729525641314,0.001,67073.0,67070.0,0.008]
[1729525641525,0.14909,67074.0,67068.0,0.350752]
[1729525641947,0.001,67071.0,67068.0,0.360752]
[1729525642346,0.0891666,67092.0,67068.0,0.360752]
[1729525642347,0.000825,67083.0,67082.0,0.172071]
[1729525642569,0.000825,67083.0,67082.0,0.40083015]
[1729525642766,0.000825,67083.0,67082.0,0.49433015]
[1729525642971,0.000825,67083.0,67082.0,0.1733]
[1729525643176,0.000825,67083.0,67079.0,0.172076]
[1729525643177,0.01341132,67083.0,67079.0,0.172076]
[1729525643380,0.149077,67080.0,67076.0,0.0798]
[1729525643599,0.000825,67083.0,67077.0,0.22378874]
[1729525643827,0.16165832,67082.0,67077.0,0.22378874]
[1729525644025,0.01258632,67082.0,67077.0,0.22378874]
[1729525644590,0.01258632,67082.0,67079.0,0.008]
[1729525644801,0.01258632,67082.0,67078.0,0.149079]
[1729525645144,0.01358632,67082.0,67078.0,0.24876971]
[1729525645377,0.01258632,67082.0,67079.0,0.149077]
[1729525645586,0.01258632,67082.0,67078.0,0.09969071]
[1729525645587,0.01258632,67082.0,67078.0,0.24876971]
[1729525646244,0.01258632,67082.0,67079.0,0.149077]
[1729525646783,0.01258632,67082.0,67079.0,0.149075]
[1729525647001,0.16165932,67082.0,67077.0,0.22378874]
[1729525647192,0.01258632,67082.0,67078.0,0.149077]
[1729525647416,0.01358632,67082.0,67079.0,0.158075]
[1729525647553,0.01258632,67082.0,67080.0,0.149074]
[1729525647995,0.01358632,67082.0,67080.0,0.149074]
[1729525648140,0.01358632,67082.0,67079.0,0.011]
[1729525648588,0.01358632,67082.0,67081.0,0.149073]
[1729525648761,0.01258632,67082.0,67081.0,0.149073]
[1729525649169,0.01358632,67082.0,67081.0,0.149073]
[1729525650413,0.01258632,67082.0,67081.0,0.2247126]
[1729525650615,0.001,67082.0,67081.0,0.0956396]
[1729525650816,0.001,67082.0,67081.0,0.169073]
[1729525651016,0.01358632,67082.0,67081.0,0.169073]
[1729525652752,0.16265732,67082.0,67081.0,0.02]
[1729525652929,0.39071647,67082.0,67081.0,0.02]
[1729525653410,0.98817008,67082.0,67081.0,0.02]
[1729525653624,1.03278064,67082.0,67081.0,0.02]
[1729525653827,0.98817008,67082.0,67081.0,0.011]
[1729525654032,0.98817008,67082.0,67071.0,0.22378874]
[1729525654033,0.149093,67072.0,67071.0,0.22378874]
[1729525654437,0.16174192,67072.0,67071.0,0.22378874]
[1729525654639,0.16174192,67072.0,67068.0,0.20165]
[1729525654640,0.1491,67069.0,67068.0,0.20165]
[1729525655071,0.1441,67069.0,67068.0,0.20165]
[1729525655281,0.15674892,67069.0,67068.0,0.20165]
[1729525656752,0.15674892,67069.0,67068.0,0.20865]
[1729525657909,0.15774892,67069.0,67068.0,0.21765]
[1729525658851,0.01364892,67069.0,67068.0,0.21765]
[1729525659063,0.01364892,67069.0,67068.0,0.441752]
[1729525659311,0.000825,67082.0,67081.0,0.149073]
[1729525659783,0.000825,67082.0,67076.0,0.298166]
[1729525660033,0.149084,67077.0,67071.0,0.149095]
[1729525660275,0.14909,67074.0,67071.0,0.22378874]
[1729525660522,0.01264892,67076.0,67071.0,0.22378874]
[1729525660791,0.01264892,67075.0,67074.0,0.149089]
[1729525661060,0.000825,67082.0,67074.0,0.149089]
[1729525661061,0.000825,67082.0,67081.0,0.149073]
[1729525661515,0.01347392,67082.0,67081.0,0.149073]
[1729525661971,0.000825,67082.0,67081.0,0.149073]
[1729525662186,0.01347392,67082.0,67081.0,0.149073]
[1729525663305,0.01347392,67082.0,67080.0,0.149074]
[1729525663574,0.01347392,67082.0,67078.0,0.149078]
[1729525663809,0.149085,67076.0,67071.0,0.37288274]
[1729525664026,0.01347392,67082.0,67072.0,0.149093]
[1729525664027,0.01263237,67075.0,67072.0,0.149093]
[1729525664251,0.149082,67077.0,67072.0,0.149093]
[1729525664492,0.01263237,67074.0,67071.0,0.22378874]
[1729525664703,0.14908,67078.0,67073.0,0.149091]
[1729525665142,0.01263237,67077.0,67073.0,0.149091]
[1729525665613,0.01263237,67077.0,67072.0,0.012]
[1729525665815,0.01263237,67077.0,67073.0,0.149091]
[1729525666040,0.149079,67079.0,67073.0,0.160091]
[1729525666478,0.01263237,67078.0,67074.0,0.447262]
[1729525666685,0.01263237,67078.0,67077.0,0.149082]
[1729525666888,0.000825,67082.0,67081.0,0.149073]
[1729525667103,0.000825,67082.0,67081.0,0.226773]
[1729525667303,0.01345737,67082.0,67081.0,0.226773]
[1729525668972,0.01345737,67082.0,67081.0,0.233773]
[1729525669174,0.01345737,67082.0,67081.0,0.226773]
[1729525669438,0.01345737,67082.0,67081.0,0.232773]
[1729525669954,0.01345737,67082.0,67081.0,0.54176174]
[1729525670087,0.01345737,67082.0,67081.0,0.317973]
[1729525670307,0.01345737,67082.0,67081.0,0.327973]
[1729525670735,0.01345737,67082.0,67081.0,0.338973]
[1729525670937,0.01345737,67082.0,67081.0,0.45488017]
[1729525671356,0.000825,67082.0,67081.0,0.338973]
[1729525671568,0.000825,67082.0,67081.0,0.021]
[1729525672019,0.01345737,67082.0,67081.0,0.021]
[1729525672442,0.16252837,67082.0,67081.0,0.021]
[1729525678484,0.16252837,67082.0,67081.0,0.01]
[1729525678784,0.16252837,67082.0,67075.0,0.0791]
[1729525678822,0.16252837,67082.0,67081.0,0.006]
[1729525679025,0.16252837,67082.0,67081.0,0.011]
[1729525679427,0.16252837,67082.0,67081.0,0.006]
[1729525679804,0.16252837,67082.0,67081.0,0.011]
[1729525680223,0.16252837,67082.0,67081.0,0.005]
[1729525680659,0.01345737,67082.0,67081.0,0.011]
[1729525681850,0.16252837,67082.0,67081.0,0.011]
[1729525682054,0.01345737,67082.0,67081.0,0.011]
[1729525682416,0.16252837,67082.0,67081.0,0.011]
[1729525682825,0.01345737,67082.0,67081.0,0.011]
[1729525685310,0.000825,67082.0,67081.0,0.011]
[1729525685875,0.01347562,67082.0,67081.0,0.011]
[1729525686251,0.000825,67082.0,67081.0,0.011]
[1729525686424,0.01347562,67082.0,67081.0,0.011]
[1729525688752,0.01347562,67082.0,67081.0,0.19846007]
[1729525689126,0.01347562,67082.0,67081.0,0.36346007]
[1729525689337,0.000825,67082.0,67081.0,0.325073]
[1729525689551,0.000825,67082.0,67081.0,0.176]
[1729525689957,0.01347562,67082.0,67081.0,0.176]
[1729525690175,0.16254662,67082.0,67081.0,0.011]
[1729525692043,0.01347562,67082.0,67081.0,0.011]
[1729525692500,0.16254662,67082.0,67081.0,0.011]
[1729525694221,0.01347562,67082.0,67081.0,0.011]
[1729525694423,0.01347562,67082.0,67081.0,0.1092]
[1729525694636,0.01347562,67082.0,67081.0,0.344293]
[1729525694843,0.000825,67082.0,67081.0,0.345293]
[1729525695064,0.000825,67082.0,67081.0,0.19622]
[1729525695263,0.000825,67082.0,67081.0,0.19522]
[1729525695487,0.01351172,67082.0,67081.0,0.1843]
[1729525695717,0.01351172,67082.0,67081.0,0.012]
[1729525695942,0.16258272,67082.0,67081.0,0.012]
[1729525696148,0.15911859,67082.0,67081.0,0.012]
[1729525697418,0.14990957,67082.0,67081.0,0.012]
[1729525697715,0.14990957,67082.0,67081.0,0.018]
[1729525703485,0.01057227,67082.0,67081.0,0.018]
[1729525704250,0.01057227,67082.0,67081.0,0.01965]
[1729525704685,0.01139727,67082.0,67081.0,0.01965]
[1729525707576,0.01139727,67082.0,67081.0,0.07381017]
[1729525707821,0.000825,67082.0,67081.0,0.248623]
[1729525708065,0.000825,67082.0,67081.0,0.344323]
[1729525709176,0.000825,67082.0,67081.0,0.19525]
[1729525711367,0.000825,67082.0,67081.0,0.344323]
[1729525711875,0.000825,67083.0,67082.0,0.1938]
[1729525712114,0.000825,67083.0,67082.0,0.342871]
[1729525712366,0.000825,67083.0,67082.0,0.49183015]
[1729525712608,0.000825,67083.0,67082.0,0.60368605]
[1729525712842,0.000825,67083.0,67082.0,0.6457893]
[1729525714298,0.00151051,67084.0,67083.0,0.007]
[1729525714500,0.00151051,67084.0,67083.0,0.32602815]
[1729525714706,0.00151051,67084.0,67083.0,0.49872815]
[1729525714914,0.00151051,67084.0,67083.0,0.6476873]
[1729525715559,0.00151051,67084.0,67083.0,0.6586873]
[1729525716413,0.00151051,67084.0,67083.0,0.77039019]
[1729525716596,0.00151051,67084.0,67083.0,0.77036867]
[1729525717015,0.00151051,67084.0,67083.0,0.6686873]
[1729525717690,0.00151051,67084.0,67083.0,0.78234767]
[1729525717898,0.00151051,67084.0,67083.0,0.78034767]
[1729525718323,0.00151051,67084.0,67083.0,0.6686873]
[1729525718538,0.00151051,67084.0,67083.0,0.7803467]
[1729525719375,0.00151051,67084.0,67083.0,0.6686873]
[1729525720022,0.00151051,67084.0,67083.0,0.7806873]
[1729525720237,0.00151051,67084.0,67083.0,0.7786873]
[1729525724437,0.22378874,67106.0,67099.0,0.149033]
[1729525724670,0.22378874,67106.0,67099.0,0.3410363]
[1729525724899,0.10851528,67100.0,67099.0,0.3410363]
[1729525725124,0.1,67100.0,67099.0,0.3410363]
[1729525726243,0.1,67100.0,67099.0,0.48999545]
[1729525726455,0.1,67100.0,67099.0,0.51299545]
[1729525726661,0.1,67100.0,67099.0,0.49809215]
[1729525728625,0.100825,67100.0,67099.0,0.49809215]
[1729525730225,0.100825,67100.0,67099.0,0.50109215]
[1729525730895,0.100825,67100.0,67099.0,0.50509215]
[1729525731149,0.100825,67100.0,67099.0,0.59370336]
[1729525731654,0.100825,67100.0,67099.0,0.59870336]
[1729525731875,0.06724493,67100.0,67099.0,0.59870336]
[1729525732811,0.06724493,67100.0,67099.0,0.59570336]
[1729525733231,0.06724493,67100.0,67099.0,0.60970336]
[1729525733450,0.06724493,67100.0,67099.0,0.61886842]
[1729525733662,0.06724493,67100.0,67099.0,0.60070336]
[1729525734077,0.06724493,67100.0,67099.0,0.61470336]
[1729525737352,0.06724493,67100.0,67099.0,0.62170336]
[1729525740522,0.06724493,67100.0,67099.0,0.62670336]
[1729525741172,0.06724493,67100.0,67099.0,0.62170336]
[1729525741387,0.06724493,67100.0,67099.0,0.184033]
[1729525741593,0.06724493,67100.0,67099.0,0.035]
[1729525742248,0.07613125,67100.0,67099.0,0.035]
[1729525742662,0.07613125,67100.0,67099.0,0.021]
[1729525743100,0.07613125,67100.0,67099.0,0.029]
[1729525743734,0.07613125,67100.0,67099.0,0.015]
[1729525743977,0.07613125,67100.0,67099.0,0.024]
[1729525744632,0.40036225,67100.0,67099.0,0.024]
[1729525744921,0.5493214,67100.0,67099.0,0.024]
[1729525745143,0.5543214,67100.0,67099.0,0.024]
[1729525745343,0.5543214,67100.0,67099.0,0.015]
[1729525745786,0.5543214,67100.0,67099.0,0.007]
[1729525746019,0.5543214,67100.0,67099.0,0.014]
[1729525746688,0.5543214,67100.0,67099.0,0.022]
[1729525746893,0.5543214,67100.0,67099.0,0.014]
[1729525747312,0.5563214,67100.0,67099.0,0.007]
[1729525747725,0.5583214,67100.0,67099.0,0.007]
[1729525749177,0.5683214,67100.0,67099.0,0.007]
[1729525749412,0.6683214,67100.0,67099.0,0.007]
[1729525752080,0.71470917,67100.0,67099.0,0.007]
[1729525753820,0.6683214,67100.0,67099.0,0.007]
[1729525757382,0.5660214,67100.0,67099.0,0.007]
[1729525757591,0.5760214,67100.0,67099.0,0.007]
[1729525757800,0.4931214,67100.0,67099.0,0.007]
[1729525762803,0.4951214,67100.0,67099.0,0.007]
[1729525763022,0.4931214,67100.0,67099.0,0.007]
[1729525764817,0.4931214,67100.0,67099.0,0.00865]
[1729525768582,0.33416225,67100.0,67099.0,0.00865]
[1729525768798,0.32916225,67100.0,67099.0,0.00865]
[1729525769016,0.33416225,67100.0,67099.0,0.00865]
[1729525769449,0.4931214,67100.0,67099.0,0.00865]
[1729525769664,0.4911214,67100.0,67099.0,0.00865]
[1729525770192,0.4901214,67100.0,67099.0,0.00865]
[1729525771041,0.4791214,67100.0,67099.0,0.00865]
[1729525771265,0.4891214,67100.0,67099.0,0.00865]
[1729525771495,0.4971214,67100.0,67099.0,0.00865]
[1729525773029,0.34316225,67100.0,67099.0,0.00865]
[1729525773246,0.33816225,67100.0,67099.0,0.00865]
[1729525774096,0.33416225,67100.0,67099.0,0.00865]
[1729525774297,0.4791214,67100.0,67099.0,0.00865]
[1729525774507,0.4841214,67100.0,67099.0,0.00865]
[1729525774723,0.53262497,67100.0,67099.0,0.00865]
[1729525775787,0.4861214,67100.0,67099.0,0.00865]
[1729525775991,0.4811214,67100.0,67099.0,0.00865]
[1729525776412,0.3761214,67100.0,67099.0,0.00865]
[1729525776616,0.42268954,67100.0,67099.0,0.00865]
[1729525776837,0.23016225,67100.0,67099.0,0.019025]
[1729525777052,0.23016225,67100.0,67099.0,0.00865]
[1729525777309,0.22716225,67100.0,67099.0,0.00865]
[1729525777533,0.22516225,67100.0,67099.0,0.00865]
[1729525777737,0.27174235,67100.0,67099.0,0.00865]
[1729525778235,0.22516225,67100.0,67099.0,0.00865]
[1729525778471,0.22516225,67100.0,67099.0,0.01265]
[1729525778681,0.27175886,67100.0,67099.0,0.01265]
[1729525778901,0.22516225,67100.0,67099.0,0.01265]
[1729525779559,0.22516225,67100.0,67099.0,0.01565]
[1729525779970,0.27176527,67100.0,67099.0,0.01565]
[1729525780615,0.22516225,67100.0,67099.0,0.01565]
[1729525780825,0.27176209,67100.0,67099.0,0.01565]
[1729525781712,0.22516225,67100.0,67099.0,0.01565]
[1729525782116,0.27175932,67100.0,67099.0,0.01565]
[1729525782325,0.22516225,67100.0,67099.0,0.01565]
[1729525783810,0.27175419,67100.0,67099.0,0.01565]
[1729525784019,0.22516225,67100.0,67099.0,0.01565]
[1729525784844,0.27175459,67100.0,67099.0,0.01565]
[1729525786352,0.27175459,67100.0,67099.0,0.01265]
[1729525786802,0.27175459,67100.0,67099.0,0.01465]
[1729525787020,0.27175459,67100.0,67099.0,0.01065]
[1729525787234,0.27175459,67100.0,67099.0,0.01365]
[1729525787651,0.26898596,67100.0,67099.0,0.01365]
[1729525788971,0.41794511,67100.0,67099.0,0.01365]
[1729525789150,0.42294511,67100.0,67099.0,0.01365]
[1729525789980,0.42294511,67100.0,67099.0,0.00865]
[1729525796920,0.53294511,67100.0,67099.0,0.00865]
[1729525798721,0.07336262,67100.0,67099.0,0.18755]
[1729525799345,0.22239362,67100.0,67099.0,0.18755]
[1729525799560,0.22239362,67100.0,67099.0,0.08905]
[1729525799775,0.26899106,67100.0,67099.0,0.00865]
[1729525800449,0.53295021,67100.0,67099.0,0.00865]
[1729525800906,0.53395021,67100.0,67099.0,0.01765]
[1729525801218,0.53295021,67100.0,67099.0,0.00865]
[1729525801670,0.53295021,67100.0,67099.0,0.01565]
[1729525802340,0.53295021,67100.0,67099.0,0.00865]
[1729525802549,0.53395021,67100.0,67099.0,0.00865]
[1729525803479,0.71875021,67100.0,67099.0,0.00865]
[1729525804345,0.72679604,67100.0,67099.0,0.00865]
[1729525804764,0.73179604,67100.0,67099.0,0.00865]
[1729525805178,0.73379604,67100.0,67099.0,0.00965]
[1729525805599,0.73879604,67100.0,67099.0,0.01065]
[1729525806296,0.73179604,67100.0,67099.0,0.00965]
[1729525806714,0.73879604,67100.0,67099.0,0.01065]
[1729525807153,0.73879604,67100.0,67099.0,1e-06]
[1729525808048,0.264057,67088.0,67087.0,0.22378874]
[1729525808263,0.97471359,67088.0,67087.0,0.22378874]
[1729525808510,1.02787929,67088.0,67087.0,0.22378874]
[1729525808720,1.02787929,67088.0,67084.0,0.00165]
[1729525808721,0.264064,67085.0,67084.0,0.00165]
[1729525808936,0.45962059,67085.0,67084.0,0.00165]
[1729525809150,0.46799752,67085.0,67084.0,0.00165]
[1729525809810,0.00837693,67085.0,67084.0,0.17115]
[1729525810013,0.149064,67085.0,67084.0,0.17115]
[1729525810223,0.1574306,67085.0,67084.0,0.17115]
[1729525810659,0.0083666,67085.0,67084.0,0.17115]
[1729525810878,0.0083666,67085.0,67084.0,0.320216]
[1729525811125,0.22378874,67099.0,67086.0,0.0758]
[1729525811341,0.14906,67087.0,67086.0,0.0758]
[1729525811595,0.14895915,67087.0,67084.0,0.00265]
[1729525811823,0.149064,67085.0,67084.0,0.00265]
[1729525812039,0.29802315,67085.0,67084.0,0.00265]
[1729525812246,0.30643936,67085.0,67084.0,0.00265]
[1729525812457,0.30643936,67085.0,67084.0,0.00165]
[1729525813395,0.42243936,67085.0,67084.0,0.01565]
[1729525813658,0.42143936,67085.0,67084.0,0.00165]
[1729525813845,0.42143936,67085.0,67084.0,0.00365]
[1729525814120,0.41143936,67085.0,67084.0,0.00365]
[1729525814325,0.40643936,67085.0,67084.0,0.00365]
[1729525814743,0.40643936,67085.0,67084.0,0.00465]
[1729525817934,0.00841621,67085.0,67084.0,0.09492]
[1729525818141,0.00841621,67085.0,67084.0,0.359086]
[1729525818351,0.06459129,67100.0,67084.0,0.359086]
[1729525818352,0.06459129,67100.0,67095.0,0.1721]
[1729525818797,0.00838747,67099.0,67096.0,0.149038]
[1729525819006,0.00838747,67099.0,67095.0,0.1721]
[1729525819445,0.149038,67097.0,67095.0,0.1721]
[1729525819658,0.14904,67096.0,67095.0,0.1721]
[1729525820078,0.15742747,67096.0,67095.0,0.1721]
[1729525821127,0.15842747,67096.0,67095.0,0.1851]
[1729525821380,0.15942747,67096.0,67095.0,0.1971]
[1729525821590,0.30838662,67096.0,67095.0,0.025]
[1729525821798,0.31338662,67096.0,67095.0,0.025]
[1729525822004,0.30838662,67096.0,67095.0,0.025]
[1729525823463,0.15734662,67096.0,67089.0,0.0752]
[1729525823668,0.149053,67090.0,67089.0,0.0752]
[1729525824096,0.15764598,67090.0,67089.0,0.0752]
[1729525824724,0.15764598,67090.0,67089.0,0.0862]
[1729525824932,0.15764598,67090.0,67089.0,0.0802]
[1729525825346,0.15764598,67090.0,67089.0,0.0922]
[1729525825347,0.15864598,67090.0,67089.0,0.0922]
[1729525826379,0.15864598,67090.0,67089.0,0.0872]
[1729525826588,0.15964598,67090.0,67089.0,0.0982]
[1729525828902,0.01059298,67090.0,67089.0,0.247255]
[1729525829113,0.15964598,67090.0,67089.0,0.0982]
[1729525829344,0.15964598,67090.0,67089.0,0.023]
[1729525829345,0.42360513,67090.0,67089.0,0.023]
[1729525829543,0.42560513,67090.0,67089.0,0.023]
[1729525829797,0.42560513,67090.0,67084.0,0.00165]
[1729525829798,0.264064,67085.0,67084.0,0.00165]
[1729525830001,0.41302315,67085.0,67084.0,0.00165]
[1729525830185,0.46810393,67085.0,67084.0,0.00165]
[1729525831567,0.46910393,67085.0,67084.0,0.00165]
[1729525831777,0.42460314,67085.0,67084.0,0.00165]
[1729525831978,0.42260314,67085.0,67084.0,0.00165]
[1729525833071,0.42160314,67085.0,67084.0,0.00165]
[1729525833285,0.42960314,67085.0,67084.0,0.00165]
[1729525833513,0.43760314,67085.0,67084.0,0.00165]
[1729525833960,0.42960314,67085.0,67084.0,0.00165]
[1729525834163,0.42160314,67085.0,67084.0,0.00165]
[1729525834402,0.43760314,67085.0,67084.0,0.00165]
[1729525834618,0.43960314,67085.0,67084.0,0.00165]
[1729525835057,0.43760314,67085.0,67084.0,0.00165]
[1729525835287,0.43960314,67085.0,67084.0,0.00165]
[1729525836628,0.43760314,67085.0,67084.0,0.00165]
[1729525836882,0.4840651,67085.0,67084.0,0.00165]
[1729525837091,0.4860651,67085.0,67084.0,0.00165]
[1729525837300,0.4840651,67085.0,67084.0,0.00165]
[1729525837930,0.43760314,67085.0,67084.0,0.00165]
[1729525839813,0.48402692,67085.0,67084.0,0.00165]
[1729525840233,0.48602692,67085.0,67084.0,0.00165]
[1729525840439,0.48402692,67085.0,67084.0,0.00165]
[1729525842075,0.48602692,67085.0,67084.0,0.00165]
[1729525842319,0.48402692,67085.0,67084.0,0.00165]
[1729525842753,0.43760314,67085.0,67084.0,0.00165]
[1729525843180,0.48399249,67085.0,67084.0,0.00165]
[1729525844245,0.43760314,67085.0,67084.0,0.00165]
[1729525845989,0.42760314,67085.0,67084.0,0.00165]
[1729525846215,0.43760314,67085.0,67084.0,0.00165]
[1729525846928,0.42960314,67085.0,67084.0,0.00165]
[1729525847144,0.42160314,67085.0,67084.0,0.00165]
[1729525847535,0.42760314,67085.0,67084.0,0.00165]
[1729525848200,0.149075,67080.0,67079.0,0.22378874]
[1729525848394,0.149091,67073.0,67072.0,0.22378874]
[1729525848886,0.149095,67071.0,67063.0,0.20561595]
[1729525849222,0.15745166,67073.0,67063.0,0.10817748]
[1729525849449,0.149093,67073.0,67063.0,0.25729048]
[1729525849656,0.15745166,67072.0,67063.0,0.10817748]
[1729525849868,0.00835866,67072.0,67063.0,0.25728948]
[1729525850069,0.149091,67074.0,67063.0,0.25728948]
[1729525850284,0.00835866,67071.0,67063.0,0.25728948]
[1729525850549,0.001,67073.0,67063.0,0.25728948]
[1729525850755,0.00835866,67070.0,67063.0,0.25728948]
[1729525850969,0.149091,67073.0,67063.0,0.25728948]
[1729525851178,0.298175,67075.0,67063.0,0.25728948]
[1729525851179,0.00835866,67069.0,67064.0,0.1741]
[1729525851388,0.001,67072.0,67064.0,0.1741]
[1729525851595,0.00835866,67068.0,67064.0,0.1741]
[1729525851841,0.149095,67071.0,67064.0,0.1741]
[1729525852045,0.001,67070.0,67064.0,0.1741]
[1729525852260,0.00935866,67070.0,67064.0,0.1741]
[1729525852481,0.00835866,67069.0,67064.0,0.1741]
[1729525852940,0.001,67068.0,67064.0,0.1781]
[1729525853587,0.00835866,67067.0,67064.0,0.1821]
[1729525853792,0.00835866,67067.0,67064.0,0.1781]
[1729525854210,0.00835866,67067.0,67064.0,0.1821]
[1729525854446,0.00835866,67067.0,67064.0,0.1741]
[1729525854865,0.00935866,67067.0,67064.0,0.1821]
[1729525855073,0.15746566,67066.0,67064.0,0.1821]
[1729525855295,0.00835866,67066.0,67064.0,0.1781]
[1729525855508,0.00835866,67066.0,67064.0,0.1821]
[1729525856165,0.00835866,67066.0,67064.0,0.1781]
[1729525856372,0.00935866,67066.0,67064.0,0.1781]
[1729525856581,0.00935866,67066.0,67064.0,0.17975]
[1729525856780,0.01035866,67066.0,67064.0,0.18375]
[1729525860813,0.002,67066.0,67064.0,0.18375]
[1729525861414,0.00835866,67065.0,67064.0,0.18375]
[1729525862273,0.00835866,67065.0,67064.0,0.17975]
[1729525862732,0.15846766,67065.0,67064.0,0.17975]
[1729525862942,0.15946766,67065.0,67064.0,0.18375]
[1729525863603,0.00935866,67065.0,67064.0,0.17975]
[1729525863816,0.00835866,67065.0,67064.0,0.17575]
[1729525864025,0.00835866,67065.0,67064.0,0.17775]
[1729525864245,0.00835866,67065.0,67064.0,0.17875]
[1729525864459,0.149107,67066.0,67064.0,0.17875]
[1729525864902,0.00835818,67065.0,67064.0,0.17875]
[1729525865332,0.00835818,67065.0,67064.0,0.17775]
[1729525865544,0.00835818,67065.0,67064.0,0.17575]
[1729525865969,0.00835818,67065.0,67064.0,0.17675]
[1729525866177,0.15746718,67065.0,67064.0,0.17575]
[1729525866379,0.00835818,67065.0,67064.0,0.17575]
[1729525866580,0.00835818,67065.0,67064.0,0.17775]
[1729525866841,0.15746718,67065.0,67064.0,0.17775]
[1729525867339,0.15746718,67065.0,67064.0,0.17875]
[1729525868325,0.00835818,67065.0,67064.0,0.17875]
[1729525868802,0.149109,67065.0,67064.0,0.17875]
[1729525869019,0.149106,67067.0,67064.0,0.17875]
[1729525869229,0.298196,67070.0,67064.0,0.17875]
[1729525869230,0.000826,67066.0,67064.0,0.17875]
[1729525869628,0.00835818,67065.0,67064.0,0.17875]
[1729525869873,0.00835818,67065.0,67064.0,0.17575]
[1729525870753,0.00835818,67065.0,67064.0,0.17775]
[1729525871159,0.00835818,67065.0,67064.0,0.17875]
[1729525871526,0.00835818,67065.0,67064.0,0.17775]
[1729525871970,0.00835818,67065.0,67064.0,0.18075]
[1729525872181,0.00835818,67065.0,67064.0,0.17875]
[1729525872310,0.000826,67066.0,67065.0,0.225009]
[1729525872512,0.000826,67066.0,67065.0,0.0759]
[1729525872724,0.00918432,67066.0,67065.0,0.0759]
[1729525872924,0.00918432,67066.0,67064.0,0.00465]
[1729525872925,0.149109,67065.0,67064.0,0.00465]
[1729525873166,0.149109,67065.0,67064.0,0.00565]
[1729525873167,0.31406815,67065.0,67064.0,0.00565]
[1729525873377,0.31406815,67065.0,67064.0,0.00165]
[1729525873378,0.66731805,67065.0,67064.0,0.00165]
[1729525873592,0.76831805,67065.0,67064.0,0.00565]
[1729525873795,0.81298892,67065.0,67064.0,0.00565]
[1729525874215,0.76831805,67065.0,67064.0,0.00565]
[1729525874633,0.76231805,67065.0,67064.0,0.00165]
[1729525874861,0.75231805,67065.0,67064.0,0.00165]
[1729525875071,0.01636653,67065.0,67064.0,0.00165]
[1729525875499,0.17347553,67065.0,67064.0,0.00165]
[1729525875906,0.16547553,67065.0,67064.0,0.00165]
[1729525876138,0.01636653,67065.0,67064.0,0.00165]
[1729525876350,0.00936653,67065.0,67064.0,0.00165]
[1729525876564,0.01436653,67065.0,67064.0,0.00165]
[1729525876770,0.006,67065.0,67064.0,0.00165]
[1729525876966,0.00922376,67065.0,67064.0,0.00165]
[1729525877174,0.00822376,67065.0,67064.0,0.00165]
[1729525877416,0.00922376,67065.0,67064.0,0.00165]
[1729525877879,0.00822376,67065.0,67064.0,0.00165]
[1729525878118,0.001,67065.0,67064.0,0.00565]
[1729525878352,0.00922376,67065.0,67064.0,0.00565]
[1729525878572,0.01022376,67065.0,67064.0,0.00965]
[1729525878803,0.01022376,67065.0,67064.0,0.10045]
[1729525879042,0.01022376,67065.0,67064.0,0.18325]
[1729525879283,0.01028036,67065.0,67064.0,0.18325]
[1729525879524,0.002,67065.0,67064.0,0.18325]
[1729525880872,0.002,67065.0,67064.0,0.332361]
[1729525882233,0.001,67065.0,67064.0,0.328361]
[1729525882451,0.000826,67066.0,67064.0,0.17525]
[1729525882736,0.000826,67066.0,67065.0,0.149109]
[1729525882968,0.000826,67066.0,67064.0,0.18625]
[1729525883200,0.000826,67066.0,67064.0,0.17925]
[1729525883420,0.000826,67066.0,67064.0,0.17525]
[1729525883636,0.001826,67066.0,67064.0,0.18625]
[1729525884339,0.001826,67066.0,67064.0,0.01265]
[1729525884340,0.15742666,67065.0,67064.0,0.01265]
[1729525884526,0.149109,67065.0,67064.0,0.01265]
[1729525884782,0.15742666,67065.0,67064.0,0.01265]
[1729525884975,0.15742666,67065.0,67064.0,0.02665]
[1729525885324,0.15742666,67065.0,67064.0,0.01265]
[1729525885539,0.30638581,67065.0,67064.0,0.01465]
[1729525885755,0.30638581,67065.0,67064.0,0.00365]
[1729525886179,0.30638581,67065.0,67064.0,0.00965]
[1729525886570,0.30638581,67065.0,67064.0,0.00365]
[1729525886774,0.30638581,67065.0,67064.0,0.00565]
[1729525887661,0.30638581,67065.0,67064.0,0.00365]